bitfinex/quotes_ETHUSD_20250114
["timestamp","ask_amount","ask_price","bid_price","bid_amount"]
[1736853481449,5.85929623,3228.9,3228.8,0.1685837]
[1736853484174,3.09702,3228.9,3228.8,0.1685837]
[1736853484862,3.09671,3229.3,3228.8,0.1685837]
[1736853485049,3.09671,3229.3,3228.9,0.7778]
[1736853485577,3.09635,3229.7,3228.9,0.7778]
[1736853485763,1.38397623,3229.6,3228.9,0.7778]
[1736853486168,3.09648,3229.5,3228.9,0.7778]
[1736853486776,4.48053623,3229.4,3228.9,0.7778]
[1736853487448,3.09656,3229.4,3228.9,0.7778]
[1736853488278,0.55,3229.6,3228.9,0.7778]
[1736853488586,3.69822246,3229.4,3228.8,0.1685837]
[1736853488796,3.09691,3229.1,3228.8,0.1685837]
[1736853491893,3.69822246,3229.4,3228.8,0.1685837]
[1736853492075,3.09673,3229.3,3228.8,0.1685837]
[1736853492396,3.09673,3229.3,3228.9,0.7778]
[1736853492799,2.92232246,3229.4,3228.8,0.1685837]
[1736853492969,3.09692,3229.1,3228.8,0.1685837]
[1736853493370,3.09693,3229.0,3228.8,0.1685837]
[1736853494387,3.09702,3228.9,3228.8,0.1685837]
[1736853494560,3.64702,3228.9,3228.8,0.1685837]
[1736853494759,4.39852,3228.9,3228.8,0.1685837]
[1736853494992,5.13060425,3228.9,3228.8,0.1685837]
[1736853499097,4.37910425,3228.9,3228.8,0.1685837]
[1736853506187,7.37910425,3228.9,3228.8,0.1685837]
[1736853510788,3.09702,3228.9,3228.8,0.1685837]
[1736853510976,8.0369,3229.1,3228.8,0.1685837]
[1736853511176,8.0369,3229.1,3228.9,0.8213]
[1736853511598,3.0969,3229.1,3228.9,0.8213]
[1736853514272,0.1933,3229.4,3228.9,0.8213]
[1736853514472,3.09666,3229.3,3228.9,0.8213]
[1736853515011,3.09675,3229.2,3228.9,0.8213]
[1736853515201,3.09683,3229.2,3228.9,0.8213]
[1736853515402,3.09686,3229.1,3228.9,0.8213]
[1736853518213,0.1933,3229.4,3228.9,0.8213]
[1736853518383,0.1933,3229.4,3229.0,0.852266]
[1736853519318,0.1933,3229.4,3229.0,3.949186]
[1736853519474,0.1933,3229.4,3229.3,0.8213]
[1736853519677,0.1933,3229.4,3229.3,0.85225952]
[1736853519879,0.1933,3229.4,3229.3,0.8213]
[1736853525582,0.1933,3229.4,3229.3,3.12759942]
[1736853525913,0.1933,3229.4,3229.3,3.94889942]
[1736853526123,0.1933,3229.4,3229.3,3.91794]
[1736853526542,0.1933,3229.4,3229.3,0.8213]
[1736853526721,0.1933,3229.4,3229.3,1.11055931]
[1736853527027,0.1933,3229.4,3229.3,4.20719931]
[1736853527922,0.1933,3229.4,3229.3,9.49815808]
[1736853528093,0.1933,3229.4,3229.3,9.46719931]
[1736853529723,0.1933,3229.4,3229.3,9.17794]
[1736853534396,0.1933,3229.4,3229.3,9.48824]
[1736853534798,0.1933,3229.4,3229.3,9.77722318]
[1736853535228,0.1933,3229.4,3229.3,12.77722318]
[1736853535528,0.1933,3229.4,3229.3,15.69954564]
[1736853535731,0.1933,3229.4,3229.3,17.69954564]
[1736853539599,0.1933,3229.4,3229.3,14.77722318]
[1736853540712,0.1933,3229.4,3229.3,15.39107166]
[1736853541674,0.1933,3229.4,3229.3,12.77722318]
[1736853541957,0.1933,3229.4,3229.3,9.68058318]
[1736853542497,0.1933,3229.4,3229.3,12.77722318]
[1736853546535,0.1933,3229.4,3229.3,15.69954564]
[1736853554406,0.1933,3229.4,3229.3,15.83954564]
[1736853555446,0.1933,3229.4,3229.3,15.55056246]
[1736853555939,0.1933,3229.4,3229.3,15.84087022]
[1736853558355,0.1933,3229.4,3229.3,12.91854776]
[1736853561121,0.1933,3229.4,3229.3,12.09724776]
[1736853561328,0.1933,3229.4,3229.3,5.86060776]
[1736853561535,0.1933,3229.4,3229.3,0.60060776]
[1736853561768,0.1933,3229.4,3229.3,0.29030776]
[1736853562426,1.285774,3229.4,3229.3,0.29030776]
[1736853563287,0.9568,3229.4,3229.3,0.29030776]
[1736853563924,0.9568,3229.4,3228.8,3.50984811]
[1736853564768,0.9568,3229.4,3228.9,0.29012648]
[1736853565156,0.9568,3229.4,3229.0,0.3103]
[1736853565765,0.9568,3229.4,3229.1,0.29012648]
[1736853565967,0.7635,3229.3,3229.1,0.29012648]
[1736853567534,0.7635,3229.3,3228.9,0.3103]
[1736853567734,0.7635,3229.3,3228.9,3.40731]
[1736853568535,0.7635,3229.3,3229.0,0.28989411]
[1736853569842,0.7635,3229.3,3228.9,3.4073]
[1736853570840,0.7635,3229.3,3228.9,0.3103]
[1736853571539,0.7635,3229.3,3228.9,3.40731]
[1736853582443,0.7635,3229.3,3228.9,0.3103]
[1736853582904,0.7711,3229.1,3228.9,0.3103]
[1736853586215,0.55,3229.0,3228.9,0.3103]
[1736853586386,2.70445899,3229.0,3228.8,0.1685837]
[1736853586582,1.3211,3229.0,3228.8,0.1685837]
[1736853586983,0.7711,3229.0,3228.8,0.1685837]
[1736853589022,4.41812,3228.9,3228.8,0.1685837]
[1736853593028,3.86812,3228.9,3228.8,0.1685837]
[1736853593229,0.7711,3228.9,3228.8,0.1685837]
[1736853594205,3.86812,3228.9,3228.8,0.1685837]
[1736853601209,4.41812,3228.9,3228.8,0.1685837]
[1736853601547,4.859932,3228.9,3228.8,0.1685837]
[1736853602640,4.309932,3228.9,3228.8,0.1685837]
[1736853602848,3.86812,3228.9,3228.8,0.1685837]
[1736853604330,3.09687,3229.1,3228.8,0.1685837]
[1736853604526,3.87017,3229.1,3228.8,0.1685837]
[1736853604737,0.7733,3229.1,3228.8,0.1685837]
[1736853605118,0.00498168,3229.2,3228.8,0.1685837]
[1736853605547,0.00498168,3229.2,3228.8,0.9789837]
[1736853607050,0.00498168,3229.2,3228.9,0.03096719]
[1736853607350,0.00498168,3229.2,3228.8,0.9789837]
[1736853607531,0.00498168,3229.2,3228.8,1.00995089]
[1736853608050,0.00498168,3229.2,3228.8,0.9789837]
[1736853611432,0.00498168,3229.2,3228.9,0.03096721]
[1736853612059,0.00498168,3229.2,3228.8,1.00994938]
[1736853613372,0.00498168,3229.2,3228.9,0.29006548]
[1736853613576,0.00498168,3229.2,3229.0,0.0309657]
[1736853614859,0.00498168,3229.2,3228.9,0.03096565]
[1736853615688,0.00498168,3229.2,3229.0,0.2899911]
[1736853616427,0.00498168,3229.2,3228.9,0.03096565]
[1736853616583,0.00498168,3229.2,3229.1,0.03096537]
[1736853616783,0.00498168,3229.2,3229.1,0.78976537]
[1736853617622,0.00498168,3229.2,3229.1,0.7588]
[1736853617923,0.00498168,3229.2,3229.1,1.04868073]
[1736853619008,0.00498168,3229.2,3229.1,7.14551073]
[1736853619241,0.00498168,3229.2,3229.1,7.45581073]
[1736853619381,0.00498168,3229.2,3229.1,12.71581073]
[1736853621721,0.00498168,3229.2,3229.1,9.30868073]
[1736853622107,0.00498168,3229.2,3229.1,9.61898073]
[1736853622288,0.00498168,3229.2,3229.1,5.54988073]
[1736853624617,0.00498168,3229.2,3229.1,5.26]
[1736853626832,0.00498168,3229.2,3229.1,5.54969708]
[1736853631200,0.00498168,3229.2,3229.1,5.26]
[1736853631419,0.00498168,3229.2,3228.9,0.03096556]
[1736853632433,0.00498168,3229.2,3229.0,0.28993787]
[1736853633548,0.00498168,3229.2,3229.1,0.28993787]
[1736853633748,0.1933,3229.4,3229.1,0.28993787]
[1736853634254,0.603569,3229.4,3229.1,0.28993787]
[1736853634619,0.1933,3229.4,3229.1,0.28993787]
[1736853635038,0.1933,3229.4,3228.8,0.50984962]
[1736853635238,0.1933,3229.4,3228.8,0.1685837]
[1736853635437,0.1933,3229.4,3228.8,0.19954963]
[1736853636549,0.1933,3229.4,3228.9,0.290223]
[1736853636750,0.41028,3229.3,3228.9,0.290223]
[1736853637627,0.41028,3229.3,3229.0,0.290223]
[1736853639130,0.41028,3229.3,3228.8,0.1685837]
[1736853639331,0.1933,3229.4,3228.8,0.1685837]
[1736853640867,0.1933,3229.4,3228.9,0.29028858]
[1736853641734,0.1933,3229.4,3229.0,0.29028858]
[1736853642470,0.8329,3229.3,3229.0,0.29028858]
[1736853643749,0.8329,3229.3,3228.8,0.1685837]
[1736853643950,1.245175,3229.3,3228.8,0.1685837]
[1736853645339,2.62858316,3229.3,3228.9,0.29030719]
[1736853646470,1.245175,3229.3,3229.0,0.29030719]
[1736853647377,1.245175,3229.3,3228.8,0.1685837]
[1736853647378,2.62858316,3229.3,3228.8,0.1685837]
[1736853647676,1.245175,3229.3,3228.8,0.1685837]
[1736853648773,1.245175,3229.3,3228.9,0.29027924]
[1736853650476,1.245175,3229.3,3229.0,0.29027924]
[1736853651372,1.245175,3229.3,3228.8,0.1685837]
[1736853652556,2.62858316,3229.3,3228.8,0.1685837]
[1736853653779,2.62858316,3229.3,3228.9,0.29045682]
[1736853654275,0.1933,3229.4,3229.0,3.12785745]
[1736853654458,0.1933,3229.4,3229.0,3.09689]
[1736853654651,0.1933,3229.4,3228.9,1.09465682]
[1736853655280,0.1933,3229.4,3229.0,0.29045682]
[1736853656413,0.1933,3229.4,3229.1,0.29045682]
[1736853657273,1.38340816,3229.2,3229.1,0.29045682]
[1736853657462,6.02071898,3229.2,3229.1,0.29045682]
[1736853657665,6.02071898,3229.2,3228.9,5.26]
[1736853657854,1.38340816,3229.0,3228.9,5.26]
[1736853660091,4.48033816,3229.0,3228.9,5.26]
[1736853661262,5.23333816,3229.0,3228.9,5.26]
[1736853661473,3.09702,3228.9,3228.8,0.1685837]
[1736853662309,3.85002,3228.9,3228.8,0.1685837]
[1736853663563,3.09688,3229.1,3228.8,0.1685837]
[1736853663804,0.1933,3229.4,3228.8,0.19457022]
[1736853663975,0.1933,3229.4,3228.8,1.02107022]
[1736853664299,0.1933,3229.4,3228.9,0.29024113]
[1736853664500,0.1933,3229.4,3229.0,0.0309646]
[1736853664700,0.1933,3229.4,3228.9,0.32120573]
[1736853665158,0.1933,3229.4,3229.0,0.29024113]
[1736853665798,0.1933,3229.4,3229.1,0.03096462]
[1736853666101,0.1933,3229.4,3229.2,0.29024113]
[1736853666996,0.1933,3229.4,3229.3,0.8574641]
[1736853667501,0.1933,3229.4,3229.3,1.11674113]
[1736853668064,0.1933,3229.4,3229.3,0.29024113]
[1736853669904,0.1933,3229.4,3229.0,3.0]
[1736853670115,0.1933,3229.4,3228.9,5.26]
[1736853670116,3.28992,3229.4,3228.9,5.26]
[1736853670396,0.404292,3229.3,3228.9,5.26]
[1736853670597,3.28992,3229.4,3228.9,5.26]
[1736853671100,0.1933,3229.4,3228.9,5.26]
[1736853671398,0.1933,3229.4,3229.0,0.3211302]
[1736853671768,0.1933,3229.4,3229.1,0.7747]
[1736853676915,0.1933,3229.4,3229.2,0.0309653]
[1736853677728,0.1933,3229.4,3229.3,0.29006895]
[1736853691621,0.1933,3229.4,3229.0,3.0]
[1736853692626,0.1933,3229.4,3229.1,0.29019905]
[1736853693402,0.1933,3229.4,3229.1,0.32116429]
[1736853693607,0.1933,3229.4,3229.2,0.29019905]
[1736853695086,0.1933,3229.4,3229.3,0.29019905]
[1736853696091,0.1933,3229.4,3229.3,1.11159905]
[1736853696487,0.1933,3229.4,3229.3,1.42189905]
[1736853702198,0.1933,3229.4,3229.3,1.11159905]
[1736853703133,0.1933,3229.4,3229.3,1.42189905]
[1736853703631,0.1933,3229.4,3229.3,4.54949969]
[1736853706097,0.1933,3229.4,3229.3,1.42189905]
[1736853707745,0.1933,3229.4,3229.3,0.60049905]
[1736853708347,0.4429,3229.4,3229.3,0.60049905]
[1736853710135,1.2012,3229.4,3229.3,0.29019905]
[1736853710312,7.21896151,3229.4,3229.3,0.29019905]
[1736853710634,7.76896151,3229.4,3229.3,0.29019905]
[1736853710835,8.54585766,3229.4,3229.3,0.29019905]
[1736853711038,3.09702,3228.9,3228.8,0.16360202]
[1736853711374,3.85532,3228.9,3228.8,0.16360202]
[1736853711560,4.40532,3228.9,3228.8,0.16360202]
[1736853716422,4.41282,3228.9,3228.8,0.16360202]
[1736853716627,5.14622315,3228.9,3228.8,0.16360202]
[1736853719127,8.06743466,3228.9,3228.8,0.16360202]
[1736853721278,13.00743466,3228.9,3228.8,0.16360202]
[1736853723281,16.00743466,3228.9,3228.8,0.16360202]
[1736853724086,7.48001,3228.6,3228.5,1.84591743]
[1736853724231,16.75468451,3228.6,3228.5,1.84591743]
[1736853726532,16.19718451,3228.6,3228.5,1.84591743]
[1736853726768,13.19718451,3228.6,3228.5,1.84591743]
[1736853727128,13.74718451,3228.6,3228.5,1.84591743]
[1736853727335,8.80718451,3228.6,3228.5,1.84591743]
[1736853727535,8.25718451,3228.6,3228.5,1.84591743]
[1736853728779,8.80718451,3228.6,3228.5,1.84591743]
[1736853728938,8.25718451,3228.6,3228.5,1.84591743]
[1736853729339,8.80718451,3228.6,3228.5,1.84591743]
[1736853730751,4.47251,3228.6,3228.5,1.84591743]
[1736853730963,3.64731,3228.6,3228.5,1.84591743]
[1736853731472,7.40122151,3228.6,3228.5,1.84591743]
[1736853731772,10.40122151,3228.6,3228.5,1.84591743]
[1736853733054,10.39372151,3228.6,3228.5,1.84591743]
[1736853733272,8.49363465,3228.6,3228.5,1.84591743]
[1736853736180,8.50113465,3228.6,3228.5,1.84591743]
[1736853736878,11.50113465,3228.6,3228.5,1.84591743]
[1736853737958,16.44113465,3228.6,3228.5,1.84591743]
[1736853748752,16.44113465,3228.6,3228.5,1.67286267]
[1736853749591,16.44113465,3228.6,3228.5,2.67e-06]
[1736853752184,3.09856,3227.3,3227.2,0.7649]
[1736853752383,6.01977151,3227.3,3227.2,0.7649]
[1736853753264,3.64885,3227.0,3226.9,1.91267967]
[1736853754909,6.57006151,3227.0,3226.9,1.91267967]
[1736853755959,9.57006151,3227.0,3226.9,1.91267967]
[1736853756158,10.83693366,3227.0,3226.9,1.91267967]
[1736853756462,11.64983366,3227.0,3226.9,1.91267967]
[1736853757276,11.65733366,3227.0,3226.9,1.91267967]
[1736853759998,11.65733366,3227.0,3226.9,9.67e-06]
[1736853761777,11.65733366,3227.0,3225.6,0.7649]
[1736853761778,3.10018,3225.7,3225.6,0.7649]
[1736853761985,3.65018,3225.7,3225.6,0.7649]
[1736853763965,0.55,3225.7,3225.6,1.05619256]
[1736853764307,0.55,3225.7,3225.6,0.7649]
[1736853764677,0.55,3225.7,3225.5,0.19958577]
[1736853764678,0.55,3225.6,3225.5,0.1685837]
[1736853765005,0.55,3225.6,3225.5,0.9334837]
[1736853765208,0.55,3225.8,3225.5,0.9334837]
[1736853765705,0.55,3225.7,3225.5,0.9334837]
[1736853766778,3.65019,3225.6,3225.5,0.1685837]
[1736853773274,4.44409,3225.6,3225.5,0.1685837]
[1736853773493,7.44409,3225.6,3225.5,0.1185837]
[1736853774304,6.89419,3225.5,3225.4,0.06322797]
[1736853774479,6.10029,3225.5,3225.4,0.06322797]
[1736853774688,7.3741093,3225.5,3225.4,0.06322797]
[1736853775092,7.9241093,3225.5,3225.4,0.06322797]
[1736853776490,4.9241093,3225.5,3225.4,0.06322797]
[1736853776689,4.9316093,3225.5,3225.4,0.06322797]
[1736853776892,4.9241093,3225.5,3225.4,0.06322797]
[1736853778489,4.9316093,3225.5,3225.4,0.06322797]
[1736853778703,7.9316093,3225.5,3225.4,0.06322797]
[1736853781314,8.7122093,3225.5,3225.4,0.06322797]
[1736853782200,8.7122093,3225.5,3225.4,7.97e-06]
[1736853784609,7.9241093,3225.5,3225.4,7.97e-06]
[1736853784987,7.9316093,3225.5,3225.4,7.97e-06]
[1736853786390,8.7122093,3225.5,3225.4,7.97e-06]
[1736853787804,10.84532081,3225.5,3225.4,7.97e-06]
[1736853788032,10.29532081,3225.5,3225.4,7.97e-06]
[1736853788602,10.84532081,3225.5,3225.4,7.97e-06]
[1736853789014,11.62592081,3225.5,3225.4,7.97e-06]
[1736853789398,10.84532081,3225.5,3225.4,7.97e-06]
[1736853789713,10.29532081,3225.5,3225.4,7.97e-06]
[1736853790699,10.84532081,3225.5,3225.4,7.97e-06]
[1736853791247,11.63342081,3225.5,3225.4,7.97e-06]
[1736853797606,14.55463232,3225.5,3225.4,7.97e-06]
[1736853797950,11.63342081,3225.5,3225.4,7.97e-06]
[1736853798142,3.10115,3224.6,3224.5,0.8305]
[1736853798344,3.10154,3224.2,3224.1,0.8305]
[1736853798541,3.65154,3224.2,3224.1,0.8305]
[1736853799303,3.10115,3224.6,3224.0,0.14999918]
[1736853799508,3.10135,3224.5,3224.1,0.8305]
[1736853799839,2.92121151,3224.8,3224.1,0.8305]
[1736853799840,3.10139,3224.4,3224.1,0.8305]
[1736853800042,3.10117,3224.6,3224.1,0.8305]
[1736853800242,2.92121151,3224.8,3224.1,0.8305]
[1736853800480,3.10123,3224.6,3224.1,0.8305]
[1736853800651,3.10123,3224.6,3224.2,0.29051227]
[1736853800652,0.55,3224.5,3224.2,0.29051227]
[1736853800813,3.65134,3224.5,3224.2,0.29051227]
[1736853801346,3.65134,3224.5,3224.3,0.8305]
[1736853802230,3.65135,3224.4,3224.3,0.8305]
[1736853802609,3.65135,3224.4,3224.0,0.14999918]
[1736853802610,3.65164,3224.1,3224.0,0.98049918]
[1736853803526,3.65164,3224.1,3222.3,2.2815501]
[1736853803527,0.09,3223.4,3222.3,2.2815501]
[1736853803819,2.92121151,3222.7,3222.3,2.2815501]
[1736853804148,0.83248888,3223.3,3222.3,2.2815501]
[1736853804149,3.71491151,3223.3,3222.3,2.2815501]
[1736853804352,2.92121151,3223.3,3222.3,2.31258363]
[1736853804516,2.92121151,3223.3,3222.4,0.8305]
[1736853804722,2.92121151,3223.3,3222.5,0.0310284]
[1736853805351,3.10262,3223.1,3222.6,0.8305]
[1736853805853,1.45098515,3224.0,3222.4,3.0]
[1736853805854,3.65318,3222.5,3222.4,0.28993614]
[1736853806754,4.31061915,3222.5,3222.4,0.28993614]
[1736853806950,3.65327,3222.4,3222.3,6.24e-06]
[1736853807152,6.62078303,3222.4,3222.3,6.24e-06]
[1736853807354,3.65337,3222.3,3222.2,6.24e-06]
[1736853807540,4.76701007,3222.3,3222.2,6.24e-06]
[1736853807755,3.65472,3220.9,3219.8,0.8305]
[1736853807919,6.57593151,3220.9,3219.9,0.0310489]
[1736853808241,6.57593151,3220.9,3220.7,0.8305]
[1736853808242,3.65472,3220.9,3220.7,0.8305]
[1736853810748,0.55,3220.9,3220.7,0.8305]
[1736853813050,3.65472,3220.9,3220.7,0.8305]
[1736853813351,3.10404,3221.7,3220.8,2.4807515]
[1736853813758,0.03880103,3221.8,3220.8,2.4807515]
[1736853813759,0.55,3221.6,3220.8,2.4807515]
[1736853813932,3.14265103,3221.8,3220.9,0.03104084]
[1736853814127,2.92121151,3221.9,3221.0,0.7504]
[1736853814361,2.92121151,3221.9,3221.1,0.03103993]
[1736853814519,0.03879981,3221.8,3221.0,0.7504]
[1736853814726,3.65399,3221.7,3221.0,0.7504]
[1736853815029,0.55,3221.7,3221.0,0.7504]
[1736853815440,0.55,3221.3,3221.0,0.7504]
[1736853816422,0.55,3221.4,3221.0,0.7504]
[1736853816623,0.55,3221.2,3221.0,0.7504]
[1736853816955,0.55,3221.0,3220.8,2.17972864]
[1736853817720,3.10425,3221.4,3220.8,2.17972864]
[1736853817924,3.10425,3221.4,3220.9,0.0310442]
[1736853818146,3.10425,3221.4,3220.8,2.17972864]
[1736853818147,3.0,3221.8,3220.8,2.21077272]
[1736853818354,3.65416,3221.5,3220.8,2.21077272]
[1736853819238,0.55,3221.2,3220.8,2.17972864]
[1736853819749,3.10425,3221.4,3220.9,0.03104427]
[1736853819947,3.10408,3221.6,3220.9,0.03104427]
[1736853820291,0.55,3221.5,3220.8,2.17972864]
[1736853820440,3.65417,3221.5,3220.9,0.03104326]
[1736853820992,0.55,3221.3,3220.8,2.2107719]
[1736853822145,3.10407,3221.6,3220.9,0.7504]
[1736853822345,0.55,3222.0,3221.0,0.03104083]
[1736853822542,0.55,3221.6,3221.0,0.03104083]
[1736853823880,0.55,3221.6,3220.9,3.7504]
[1736853824048,0.55,3221.6,3221.0,0.03103986]
[1736853824248,0.55,3221.6,3220.9,3.7504]
[1736853824474,0.55,3221.6,3220.9,4.37612758]
[1736853824851,0.55,3221.6,3221.0,0.03103987]
[1736853826650,0.55,3221.6,3220.9,4.37612758]
[1736853826986,0.55,3221.6,3221.0,0.0310399]
[1736853827175,0.55,3221.8,3221.0,0.0310399]
[1736853827376,3.6539,3221.8,3221.0,1.03292423]
[1736853828660,3.10367,3222.0,3221.1,3.92932]
[1736853828861,3.10367,3222.0,3221.2,0.03103656]
[1736853829078,0.55,3221.9,3221.2,0.03103656]
[1736853829785,3.10351,3222.2,3221.2,0.03103656]
[1736853830004,3.57865066,3222.5,3221.3,1.12790366]
[1736853830218,3.65356,3222.1,3221.4,0.03103621]
[1736853832673,0.55,3222.3,3221.4,0.03103621]
[1736853832998,0.55,3221.7,3221.3,0.8248]
[1736853833149,3.10366,3222.0,3221.4,0.03103972]
[1736853833354,6.02448151,3222.4,3221.4,0.03103972]
[1736853833355,2.92121151,3222.4,3221.4,0.03103972]
[1736853833590,3.10347,3222.2,3221.4,0.03103972]
[1736853833803,0.55,3222.1,3221.4,0.03103972]
[1736853834096,0.55,3222.1,3221.5,0.29002049]
[1736853834454,0.55,3222.1,3221.6,0.03103568]
[1736853834654,3.10331,3222.4,3221.6,0.03103568]
[1736853834983,3.10331,3222.4,3221.7,0.8016]
[1736853835190,3.10331,3222.4,3221.8,0.0310329]
[1736853835901,0.55,3222.3,3221.8,0.0310329]
[1736853836599,0.55,3222.0,3221.7,0.8016]
[1736853837809,11.77510116,3230.1,3221.7,0.8016]
[1736853837810,3.10263,3223.1,3221.8,2.95224721]
[1736853837974,0.7802,3223.2,3221.9,0.40641472]
[1736853837975,2.92121151,3222.8,3221.9,0.40641472]
[1736853838235,0.55,3222.4,3221.8,0.29031086]
[1736853838434,3.65368,3222.0,3221.8,0.29031086]
[1736853838778,3.69254625,3221.9,3221.8,0.29031086]
[1736853838963,4.06180088,3221.9,3221.8,0.29031086]
[1736853839623,2.92121151,3222.2,3221.4,0.03103965]
[1736853839855,3.70141151,3222.5,3221.4,0.03103965]
[1736853840056,3.10354,3222.2,3221.3,0.8016]
[1736853840228,0.55,3222.1,3221.3,0.8016]
[1736853840633,0.55,3222.1,3221.4,0.29049753]
[1736853840857,0.55,3221.8,3221.4,0.29049753]
[1736853841059,3.69266887,3221.8,3221.4,0.29049753]
[1736853841239,3.65371,3222.0,3221.4,0.29049753]
[1736853841630,0.55,3221.8,3221.3,0.8016]
[1736853841829,3.10359,3222.1,3221.4,0.03103983]
[1736853842238,3.6534,3222.3,3221.4,1.02474281]
[1736853842624,3.6534,3222.3,3221.3,3.90592]
[1736853842828,3.6534,3222.3,3221.5,0.2906084]
[1736853843036,0.55,3222.1,3221.5,0.2906084]
[1736853843665,0.55,3222.3,3221.5,0.2906084]
[1736853843845,0.55,3222.3,3221.6,0.2906084]
[1736853844181,3.10318,3222.5,3221.7,0.8227]
[1736853844481,0.55,3222.4,3221.7,0.8227]
[1736853844666,0.55,3222.2,3221.7,0.8227]
[1736853845182,0.55,3222.0,3221.7,0.8227]
[1736853845347,0.55,3222.0,3221.2,3.0]
[1736853845680,3.65367,3222.0,3221.3,0.8227]
[1736853846334,3.65367,3222.0,3221.4,0.29062373]
[1736853846761,0.55,3222.0,3221.4,0.29062373]
[1736853847184,0.55,3221.8,3221.4,0.29062373]
[1736853847332,0.55,3221.8,3221.3,0.8227]
[1736853847738,0.4322208,3222.0,3221.3,0.8227]
[1736853848083,0.55,3221.8,3221.3,0.8227]
[1736853848567,0.55,3221.8,3221.0,0.8537399]
[1736853848735,0.55,3221.8,3221.0,0.8227]
[1736853849064,1.1893531,3222.5,3221.2,0.8227]
[1736853849235,0.8122,3222.5,3221.4,0.8227]
[1736853849446,0.55,3222.4,3221.5,0.0310344]
[1736853849642,0.55,3222.4,3221.6,0.8227]
[1736853849853,0.55,3222.4,3221.7,0.0310344]
[1736853850055,3.55076952,3222.7,3221.7,0.0310344]
[1736853850264,0.0387924,3222.6,3221.8,0.29079012]
[1736853850455,0.55,3222.6,3221.9,0.85373392]
[1736853850863,3.55076952,3222.7,3221.9,0.85373392]
[1736853851075,0.62955801,3222.7,3221.9,0.85373392]
[1736853851777,0.55,3222.6,3221.9,0.85373392]
[1736853851951,0.58878999,3222.6,3221.9,0.8227]
[1736853852158,0.55,3222.4,3221.9,0.8227]
[1736853853845,0.58879164,3222.4,3221.9,0.8227]
[1736853854080,0.55,3222.4,3221.9,0.8227]
[1736853854376,3.55076952,3222.7,3221.9,0.8227]
[1736853854579,3.0,3222.9,3221.9,0.8227]
[1736853854791,0.55,3222.7,3221.9,0.8227]
[1736853854946,0.03879148,3222.6,3221.9,0.8227]
[1736853855147,0.55,3222.5,3221.9,0.8227]
[1736853856284,0.55,3222.7,3221.9,0.8227]
[1736853857094,0.03879149,3222.6,3221.9,0.8227]
[1736853857458,0.3510003,3222.5,3221.9,0.8227]
[1736853858292,0.03879154,3222.4,3221.9,0.8227]
[1736853858996,0.55,3222.3,3221.9,0.8227]
[1736853859192,0.03879397,3222.3,3221.9,0.8227]
[1736853859990,0.55,3222.2,3221.9,0.8227]
[1736853861301,0.55,3222.4,3221.9,0.8227]
[1736853861460,1.02077003,3222.4,3221.9,0.8227]
[1736853861660,0.55,3222.4,3221.9,0.8227]
[1736853861870,0.59212115,3222.8,3222.0,0.03103363]
[1736853862204,2.92121151,3223.0,3222.1,0.7703]
[1736853862387,0.55,3222.9,3222.1,0.7703]
[1736853862592,0.58878954,3222.9,3222.1,0.7703]
[1736853862898,3.55,3222.6,3222.1,0.7703]
[1736853863076,3.58878957,3222.6,3222.1,0.7703]
[1736853863697,0.55,3222.4,3222.1,0.7703]
[1736853864688,0.55,3222.9,3222.1,0.7703]
[1736853865300,0.03879071,3222.8,3222.1,0.7703]
[1736853865688,0.55,3222.9,3222.1,0.7703]
[1736853867317,0.55,3222.7,3222.1,0.7703]
[1736853867477,2.92121151,3223.0,3222.1,0.7703]
[1736853867797,0.39406518,3222.9,3222.1,0.7703]
[1736853868158,0.55,3222.8,3222.1,0.7703]
[1736853868281,0.03878969,3222.7,3222.1,0.7703]
[1736853868871,0.55,3222.8,3222.1,0.7703]
[1736853869271,0.5887897,3222.8,3222.1,0.7703]
[1736853869581,0.55,3222.8,3222.1,0.7703]
[1736853869767,0.9326487,3222.8,3222.1,0.7703]
[1736853870594,0.35527551,3222.9,3222.3,0.8066]
[1736853871190,0.55,3222.8,3222.3,0.8066]
[1736853871666,3.69471151,3223.3,3222.3,0.8066]
[1736853871866,3.69471151,3223.3,3222.4,0.03102936]
[1736853872064,3.55,3223.2,3222.4,0.03102936]
[1736853872298,0.55,3223.0,3222.4,0.03102936]
[1736853873664,0.55,3223.0,3221.8,2.29075344]
[1736853873665,0.55,3223.0,3222.5,0.8066]
[1736853874068,0.55,3222.8,3222.5,0.8066]
[1736853876506,0.55,3223.0,3222.5,0.8066]
[1736853876805,0.55,3223.0,3222.6,0.03102766]
[1736853877204,0.62873534,3223.4,3222.6,0.03102766]
[1736853877392,0.62873534,3223.4,3222.6,0.03102596]
[1736853877393,1.06481003,3223.4,3222.6,0.03102596]
[1736853877786,0.55,3223.3,3222.6,0.03102596]
[1736853878487,0.55,3223.3,3222.7,0.8066]
[1736853878686,0.55,3223.3,3222.8,0.03102558]
[1736853879425,0.55,3223.3,3222.7,0.8066]
[1736853880093,0.55,3223.3,3222.8,0.03102539]
[1736853880471,3.0,3223.5,3222.9,0.8066]
[1736853880674,3.59212115,3223.5,3222.9,0.8066]
[1736853881410,2.92121151,3223.9,3223.1,0.8066]
[1736853881569,3.0,3223.8,3223.1,0.8066]
[1736853881932,0.55,3223.2,3223.1,0.8066]
[1736853882069,0.55,3223.2,3222.5,0.8066]
[1736853883576,0.55,3223.4,3222.6,0.03102541]
[1736853883799,0.55,3223.5,3222.6,0.03102541]
[1736853884010,1.04075768,3223.5,3222.6,0.03102541]
[1736853885598,0.03878177,3223.4,3222.6,0.03102541]
[1736853887808,4.04075768,3223.5,3222.6,0.03102541]
[1736853888603,0.03878177,3223.4,3222.6,0.03102541]
[1736853889615,0.03878177,3223.4,3222.7,0.8066]
[1736853889813,6.96196919,3223.5,3222.8,0.03102542]
[1736853890021,0.55,3223.3,3222.8,0.03102542]
[1736853890520,0.55,3223.3,3222.7,0.8066]
[1736853892620,2.92121151,3222.9,3222.0,0.786]
[1736853892781,3.58878736,3222.8,3222.0,0.786]
[1736853893195,0.58878736,3222.8,3222.0,0.786]
[1736853893484,3.50999887,3222.8,3222.0,0.786]